fUSD/lending_fUSD_20250205
["ID","MTS","AMOUNT","RATE_DAILY","PERIOD"]
[351734550,1738770670745,-1006.46,0.00011301,2]
[351734551,1738770670755,-1737.61,0.00011301,2]
[351734552,1738770670765,-2022.8,0.00011301,2]
[351734553,1738770670776,-668.09,0.00011301,2]
[351734554,1738770670786,-587.82,0.00011301,2]
[351734555,1738770670796,-500.0,0.00011301,2]
[351734556,1738770670806,-174.032486,0.00011302,2]
[351734557,1738770670816,-174.032486,0.00011302,2]
[351734558,1738770670826,-1000.0,0.00011306,2]
[351734559,1738770670836,-20016.64769705,0.00011311,2]
[351734560,1738770670846,-241.74103317,0.0001132,2]
[351734561,1738770670856,-165.01,0.00011325,2]
[351734562,1738770670869,-445.0,0.0001133,2]
[351734563,1738770670879,-166.15,0.0001133,2]
[351734564,1738770670889,-152.0,0.00011364,7]
[351734565,1738770670900,-500.0,0.00011366,2]
[351734566,1738770670911,-523.387043,0.00011367,2]
[351734567,1738770670922,-515.889473,0.00011367,2]
[351734568,1738770670932,-1126.69,0.00011367,2]
[351734569,1738770670943,-1018.07,0.00011367,2]
[351734570,1738770670953,-1111.66,0.00011367,2]
[351734571,1738770670963,-908.3,0.00011367,2]
[351734572,1738770670973,-1020.86,0.00011367,2]
[351734573,1738770670985,-2757.85,0.00011367,2]
[351734574,1738770670995,-500.0,0.00011367,2]
[351734575,1738770671009,-778.98,0.00011367,2]
[351734576,1738770671020,-1433.93,0.00011367,2]
[351734577,1738770671030,-1530.38,0.00011367,2]
[351734578,1738770671040,-589.89,0.00011367,2]
[351734579,1738770671051,-2425.07,0.00011367,2]
[351734580,1738770671061,-1082.03,0.00011367,2]
[351734581,1738770671072,-1820.02,0.00011367,2]
[351734582,1738770671082,-921.5,0.00011367,2]
[351734583,1738770671094,-2070.11,0.00011367,2]
[351734584,1738770671105,-500.0,0.00011367,2]
[351734585,1738770671119,-1845.69,0.00011367,2]
[351734586,1738770671129,-1760.24,0.00011367,2]
[351734587,1738770671139,-761.1,0.00011367,2]
[351734588,1738770671150,-2654.05,0.00011367,2]
[351734589,1738770671161,-1672.03,0.00011367,2]
[351734590,1738770671172,-2982.03,0.00011367,2]
[351734591,1738770671183,-1673.58,0.00011367,2]
[351734592,1738770671195,-2307.76,0.00011367,2]
[351734593,1738770671206,-1855.54,0.00011367,2]
[351734594,1738770671217,-2958.38,0.00011367,2]
[351734595,1738770671228,-2623.09,0.00011367,2]
[351734596,1738770671239,-1036.56,0.00011367,2]
[351734597,1738770671250,-2084.26,0.00011367,2]
[351734598,1738770671260,-1013.94,0.00011367,2]
[351734599,1738770671271,-1161.41,0.00011367,2]
[351734600,1738770671281,-500.0,0.00011367,2]
[351734601,1738770671292,-1354.82,0.00011367,2]
[351734602,1738770671303,-3316.09,0.00011367,2]
[351734603,1738770671313,-500.0,0.00011367,2]
[351734604,1738770671323,-2075.83,0.00011367,2]
[351734605,1738770671336,-2436.56,0.00011367,2]
[351734606,1738770671352,-1343.72,0.00011367,2]
[351734607,1738770671362,-1245.1,0.00011367,2]
[351734608,1738770671378,-500.0,0.00011368,2]
[351734609,1738770671388,-596.28,0.00011368,2]
[351734610,1738770671399,-500.0,0.00011368,2]
[351734611,1738770671409,-1332.61,0.00011368,2]
[351734612,1738770671419,-500.0,0.00011368,2]
[351734613,1738770671429,-1095.47,0.00011368,2]
[351734614,1738770671439,-678.16,0.00011368,2]
[351734615,1738770671450,-563.16,0.00011368,2]
[351734616,1738770671460,-749.13,0.00011368,2]
[351734617,1738770671470,-607.4,0.00011368,2]
[351734618,1738770671480,-900.55,0.00011368,2]
[351734619,1738770671489,-1434.78,0.00011368,2]
[351734620,1738770671499,-576.8,0.00011368,2]
[351734621,1738770671509,-706.22,0.00011368,2]
[351734622,1738770671519,-684.39,0.00011368,2]
[351734623,1738770671529,-1039.07,0.00011368,2]
[351734624,1738770671539,-1018.32,0.00011368,2]
[351734625,1738770671548,-897.3,0.00011368,2]
[351734626,1738770671559,-673.69,0.00011368,2]
[351734627,1738770671569,-1041.58,0.00011368,2]
[351734628,1738770671578,-500.0,0.00011368,2]
[351734629,1738770671588,-534.42,0.00011368,2]
[351734630,1738770671598,-740.11,0.00011368,2]
[351734631,1738770671608,-1557.89,0.00011368,2]
[351734632,1738770671621,-731.82,0.00011368,2]
[351734633,1738770671630,-721.17,0.00011368,2]
[351734634,1738770671640,-500.0,0.00011368,2]
[351734635,1738770671650,-519.49,0.00011368,2]
[351734636,1738770671659,-829.1,0.00011368,2]
[351734637,1738770671670,-858.89,0.00011368,2]
[351734638,1738770671679,-500.0,0.00011368,2]
[351734639,1738770671690,-921.22,0.00011368,2]
[351734640,1738770671700,-500.0,0.00011368,2]
[351734641,1738770671710,-946.31,0.00011368,2]
[351734642,1738770671720,-500.0,0.00011368,2]
[351734643,1738770671730,-802.39,0.00011368,2]
[351734644,1738770671739,-1382.83,0.00011368,2]
[351734645,1738770671749,-521.6151056,0.00011368,2]
[351734646,1738770671759,-1400.23,0.00011368,2]
[351734647,1738770671769,-745.53,0.00011368,2]
[351734648,1738770671778,-707.14,0.00011368,2]
[351734649,1738770671788,-1118.15,0.00011368,2]
[351734650,1738770671799,-826.65,0.00011368,2]
[351734651,1738770671809,-721.92,0.00011368,2]
[351734652,1738770671819,-1111.61,0.00011368,2]
[351734653,1738770671829,-801.84,0.00011368,2]
[351734654,1738770671839,-500.0,0.00011368,2]
[351734655,1738770671850,-194.26,0.00011368,2]
[351734656,1738770671860,-969.53,0.00011368,2]
[351734657,1738770671873,-500.0,0.00011368,2]
[351734658,1738770671883,-902.57,0.00011368,2]
[351734659,1738770671892,-500.0,0.00011368,2]
[351734660,1738770671902,-500.0,0.00011368,2]
[351734661,1738770671912,-1168.87,0.00011368,2]
[351734662,1738770671923,-500.0,0.00011368,2]
[351734663,1738770671933,-1387.9,0.00011368,2]
[351734664,1738770671943,-1060.41,0.00011369,2]
[351734665,1738770671953,-758.92,0.00011369,2]
[351734666,1738770671963,-757.71,0.00011369,2]
[351734667,1738770671973,-500.0,0.00011369,2]
[351734668,1738770671983,-1429.12,0.00011369,2]
[351734669,1738770671993,-1425.5,0.00011369,2]
[351734670,1738770672003,-1244.98,0.00011369,2]
[351734671,1738770672015,-1283.65,0.00011369,2]
[351734672,1738770672025,-3135.32,0.00011369,2]
[351734673,1738770672036,-299.65542799,0.00011369,2]
[351734674,1738770672046,-3428.69,0.00011369,2]
[351734675,1738770672058,-1299.19,0.00011369,2]
[351734676,1738770672069,-1145.57,0.00011369,2]
[351734677,1738770672079,-1194.71,0.00011369,2]
[351734678,1738770672090,-739.14,0.00011369,2]
[351734679,1738770672100,-2567.97,0.00011369,2]
[351734680,1738770672110,-853.27,0.00011369,2]
[351734681,1738770672124,-1570.67,0.00011369,2]
[351734682,1738770672136,-2103.34,0.00011369,2]
[351734683,1738770672146,-1000.0,0.00011369,2]
[351734684,1738770672156,-520.86,0.00011369,2]
[351734685,1738770672167,-1711.72,0.00011369,2]
[351734686,1738770672177,-656.49389047,0.00011393,2]
[351734687,1738770672188,-5076.02664,0.000114,2]
[351734688,1738770672198,-200.0,0.00011421,2]
[351734689,1738770672207,-200.0,0.00011421,2]
[351734690,1738770672217,-200.0,0.00011421,2]
[351734691,1738770672227,-200.0,0.00011421,2]
[351734692,1738770672237,-200.0,0.00011421,2]
[351734693,1738770672247,-200.0,0.00011421,2]
[351734694,1738770672258,-200.0,0.00011421,2]
[351734695,1738770672268,-200.0,0.00011421,2]
[351734696,1738770672279,-200.0,0.00011421,2]
[351734697,1738770672289,-200.0,0.00011421,2]
[351734698,1738770672299,-200.0,0.00011421,2]
[351734699,1738770672310,-200.0,0.00011421,2]
[351734700,1738770672320,-200.0,0.00011421,2]
[351734701,1738770672330,-200.0,0.00011421,2]
[351734702,1738770672341,-200.0,0.00011421,2]
[351734703,1738770672351,-200.0,0.00011421,2]
[351734704,1738770672366,-200.0,0.00011421,2]
[351734705,1738770672378,-200.0,0.00011421,2]
[351734706,1738770672570,-200.0,0.00011421,2]
[351734707,1738770672580,-200.0,0.00011421,2]
[351734708,1738770672591,-200.0,0.00011421,2]
[351734709,1738770672600,-500.0,0.00011421,2]
[351734710,1738770672610,-200.0,0.00011421,2]
[351734711,1738770672625,-250.0,0.00011425,2]
[351734712,1738770672635,-1109.86,0.00011438,2]
[351734713,1738770672645,-601.45,0.00011438,2]
[351734714,1738770672654,-651.5,0.00011438,2]
[351734715,1738770672664,-2690.41,0.00011438,2]
[351734716,1738770672673,-1927.8,0.00011438,2]
[351734717,1738770672685,-1684.83,0.00011438,2]
[351734718,1738770672694,-1968.47,0.00011438,2]
[351734719,1738770672704,-1487.65,0.00011438,2]
[351734720,1738770672714,-1200.92,0.00011438,2]
[351734721,1738770672724,-2590.26,0.00011438,2]
[351734722,1738770672733,-3157.9,0.00011438,2]
[351734723,1738770672742,-1135.45,0.00011438,2]
[351734724,1738770672752,-553.43,0.00011438,2]
[351734725,1738770672762,-2633.64,0.00011438,2]
[351734726,1738770672772,-1119.78,0.00011438,2]
[351734727,1738770672782,-1006.46,0.00011438,2]
[351734728,1738770672792,-1737.61,0.00011438,2]
[351734729,1738770672801,-2022.8,0.00011438,2]
[351734730,1738770672811,-668.09,0.00011438,2]
[351734731,1738770672820,-587.82,0.00011438,2]
[351734732,1738770672830,-2087.91498332,0.0001145,2]
[351734733,1738770672839,-445.0,0.0001146,2]
[351734734,1738770672849,-300.0,0.00011479,2]
[351734735,1738770672859,-300.0,0.00011479,2]
[351734736,1738770672870,-300.0,0.00011479,2]
[351734737,1738770672880,-300.0,0.00011479,2]
[351734738,1738770672890,-404.21477327,0.00011479,2]
[351734739,1738770672900,-333445.23302542,0.0001148,2]
[351734740,1738770672909,-288.63469799,0.00011497,2]
[351734741,1738770672919,-1000.0,0.00011499,4]
[351734742,1738770672929,-300.0,0.00011499,2]
[351734743,1738770672939,-300.0,0.00011499,2]
[351734744,1738770672950,-300.0,0.00011499,2]
[351734745,1738770672960,-300.0,0.00011499,2]
[351734746,1738770672971,-445.0,0.000115,2]
[351734747,1738770672981,-445.0,0.000115,2]
[351734748,1738770672991,-445.0,0.000115,2]
[351734749,1738770673001,-223.0,0.000115,2]
[351734750,1738770673014,-223.0,0.000115,2]
[351734751,1738770673024,-85000.0,0.000115,4]
[351734752,1738770673034,-3063.34,0.000115,2]
[351734753,1738770673044,-500.0,0.000115,4]
[351734754,1738770673055,-500.0,0.00011503,2]
[351734755,1738770673065,-200.0,0.00011504,2]
[351734756,1738770673075,-200.0,0.00011504,2]
[351734757,1738770673086,-523.387043,0.00011504,2]
[351734758,1738770673096,-515.889473,0.00011504,2]
[351734759,1738770673106,-1126.69,0.00011504,2]
[351734760,1738770673118,-1018.07,0.00011504,2]
[351734761,1738770673128,-1111.66,0.00011504,2]
[351734762,1738770673138,-908.3,0.00011504,2]
[351734763,1738770673148,-1020.86,0.00011504,2]
[351734764,1738770673158,-2757.85,0.00011504,2]
[351734765,1738770673168,-500.0,0.00011504,2]
[351734766,1738770673178,-778.98,0.00011504,2]
[351734767,1738770673188,-1433.93,0.00011504,2]
[351734768,1738770673198,-1530.38,0.00011504,2]
[351734769,1738770673208,-589.89,0.00011504,2]
[351734770,1738770673218,-2425.07,0.00011504,2]
[351734771,1738770673228,-1082.03,0.00011504,2]
[351734772,1738770673238,-1820.02,0.00011504,2]
[351734773,1738770673248,-921.5,0.00011504,2]
[351734774,1738770673258,-2070.11,0.00011504,2]
[351734775,1738770673268,-500.0,0.00011504,2]
[351734776,1738770673278,-1845.69,0.00011504,2]
[351734777,1738770673288,-1760.24,0.00011504,2]
[351734778,1738770673298,-761.1,0.00011504,2]
[351734779,1738770673308,-2654.05,0.00011504,2]
[351734780,1738770673318,-1672.03,0.00011504,2]
[351734781,1738770673328,-2982.03,0.00011504,2]
[351734782,1738770673337,-1673.58,0.00011504,2]
[351734783,1738770673347,-2307.76,0.00011504,2]
[351734784,1738770673357,-1855.54,0.00011504,2]
[351734785,1738770673369,-2958.38,0.00011504,2]
[351734786,1738770673378,-2623.09,0.00011504,2]
[351734787,1738770673388,-1036.56,0.00011504,2]
[351734788,1738770673397,-2084.26,0.00011504,2]
[351734789,1738770673407,-1013.94,0.00011504,2]
[351734790,1738770673417,-1161.41,0.00011504,2]
[351734791,1738770673427,-500.0,0.00011504,2]
[351734792,1738770673437,-1354.82,0.00011504,2]
[351734793,1738770673446,-3316.09,0.00011504,2]
[351734794,1738770673456,-500.0,0.00011504,2]
[351734795,1738770673466,-2075.83,0.00011504,2]
[351734796,1738770673476,-2436.56,0.00011504,2]
[351734797,1738770673486,-1343.72,0.00011504,2]
[351734798,1738770673495,-1245.1,0.00011504,2]
[351734799,1738770673504,-500.0,0.00011505,2]
[351734800,1738770673514,-596.28,0.00011505,2]
[351734801,1738770673523,-500.0,0.00011505,2]
[351734802,1738770673533,-1332.61,0.00011505,2]
[351734803,1738770673543,-500.0,0.00011505,2]
[351734804,1738770673552,-1095.47,0.00011505,2]
[351734805,1738770673561,-678.16,0.00011505,2]
[351734806,1738770673571,-563.16,0.00011505,2]
[351734807,1738770673580,-749.13,0.00011505,2]
[351734808,1738770673590,-607.4,0.00011505,2]
[351734809,1738770673599,-900.55,0.00011505,2]
[351734810,1738770673608,-1434.78,0.00011505,2]
[351734811,1738770673619,-576.8,0.00011505,2]
[351734812,1738770673628,-706.22,0.00011505,2]
[351734813,1738770673638,-684.39,0.00011505,2]
[351734814,1738770673648,-1039.07,0.00011505,2]
[351734815,1738770673657,-1018.32,0.00011505,2]
[351734816,1738770673666,-897.3,0.00011505,2]
[351734817,1738770673676,-673.69,0.00011505,2]
[351734818,1738770673685,-1041.58,0.00011505,2]
[351734819,1738770673695,-500.0,0.00011505,2]
[351734820,1738770673705,-534.42,0.00011505,2]
[351734821,1738770673716,-740.11,0.00011505,2]
[351734822,1738770673725,-174.032486,0.00011505,2]
[351734823,1738770673735,-174.032486,0.00011505,2]
[351734824,1738770673745,-1557.89,0.00011505,2]
[351734825,1738770673754,-731.82,0.00011505,2]
[351734826,1738770673764,-721.17,0.00011505,2]
[351734827,1738770673774,-500.0,0.00011505,2]
[351734828,1738770673784,-519.49,0.00011505,2]
[351734829,1738770673793,-829.1,0.00011505,2]
[351734830,1738770673803,-858.89,0.00011505,2]
[351734831,1738770673812,-500.0,0.00011505,2]
[351734832,1738770673821,-921.22,0.00011505,2]
[351734833,1738770673831,-500.0,0.00011505,2]
[351734834,1738770673841,-946.31,0.00011505,2]
[351734835,1738770673851,-500.0,0.00011505,2]
[351734836,1738770673860,-802.39,0.00011505,2]
[351734837,1738770673872,-1382.83,0.00011505,2]
[351734838,1738770673881,-1400.23,0.00011505,2]
[351734839,1738770673892,-745.53,0.00011505,2]
[351734840,1738770673902,-707.14,0.00011505,2]
[351734841,1738770673912,-1118.15,0.00011505,2]
[351734842,1738770673923,-826.65,0.00011505,2]
[351734843,1738770673932,-721.92,0.00011505,2]
[351734844,1738770673942,-1111.61,0.00011505,2]
[351734845,1738770673951,-801.84,0.00011505,2]
[351734846,1738770673961,-500.0,0.00011505,2]
[351734847,1738770673970,-969.53,0.00011505,2]
[351734848,1738770673980,-500.0,0.00011505,2]
[351734849,1738770673989,-902.57,0.00011505,2]
[351734850,1738770673999,-254.8,0.00011505,2]
[351734851,1738770674010,-500.0,0.00011505,2]
[351734852,1738770674022,-1168.87,0.00011505,2]
[351734853,1738770674033,-500.0,0.00011505,2]
[351734854,1738770674043,-1387.9,0.00011505,2]
[351734855,1738770674053,-151.0,0.00011506,2]
[351734856,1738770674062,-1060.41,0.00011506,2]
[351734857,1738770674072,-758.92,0.00011506,2]
[351734858,1738770674081,-757.71,0.00011506,2]
[351734859,1738770674091,-500.0,0.00011506,2]
[351734860,1738770674101,-1429.12,0.00011506,2]
[351734861,1738770674111,-1425.5,0.00011506,2]
[351734862,1738770674123,-1244.98,0.00011506,2]
[351734863,1738770674133,-1283.65,0.00011506,2]
[351734864,1738770674143,-3135.32,0.00011506,2]
[351734865,1738770674153,-3428.69,0.00011506,2]
[351734866,1738770674164,-1000.0,0.00011506,2]
[351734867,1738770674174,-1299.19,0.00011506,2]
[351734868,1738770674185,-1145.57,0.00011506,2]
[351734869,1738770674195,-1194.71,0.00011506,2]
[351734870,1738770674204,-739.14,0.00011506,2]
[351734871,1738770674215,-2567.97,0.00011506,2]
[351734872,1738770674226,-853.27,0.00011506,2]
[351734873,1738770674236,-1570.67,0.00011506,2]
[351734874,1738770674246,-2103.34,0.00011506,2]
[351734875,1738770674256,-1000.0,0.00011506,2]
[351734876,1738770674266,-520.86,0.00011506,2]
[351734877,1738770674276,-1711.72,0.00011506,2]
[351734878,1738770674285,-2751.0,0.00011507,2]
[351734879,1738770674295,-748.36744206,0.00011567,2]
[351734880,1738770674307,-1109.86,0.00011575,2]
[351734881,1738770674316,-601.45,0.00011575,2]
[351734882,1738770674327,-651.5,0.00011575,2]
[351734883,1738770674336,-2690.41,0.00011575,2]
[351734884,1738770674346,-1927.8,0.00011575,2]
[351734885,1738770674355,-1684.83,0.00011575,2]
[351734886,1738770674366,-1968.47,0.00011575,2]
[351734887,1738770674376,-1487.65,0.00011575,2]
[351734888,1738770674385,-1200.92,0.00011575,2]
[351734889,1738770674395,-2590.26,0.00011575,2]
[351734890,1738770674405,-3157.9,0.00011575,2]
[351734891,1738770674414,-1135.45,0.00011575,2]
[351734892,1738770674425,-553.43,0.00011575,2]
[351734893,1738770674434,-2633.64,0.00011575,2]
[351734894,1738770674444,-1119.78,0.00011575,2]
[351734895,1738770674453,-1006.46,0.00011575,2]
[351734896,1738770674463,-1737.61,0.00011575,2]
[351734897,1738770674473,-2022.8,0.00011575,2]
[351734898,1738770674482,-668.09,0.00011575,2]
[351734899,1738770674491,-587.82,0.00011575,2]
[351734900,1738770674501,-152.0,0.00011585,8]
[351734901,1738770674510,-445.0,0.000116,2]
[351734902,1738770674520,-500.0,0.000116,4]
[351734903,1738770674530,-241.74103317,0.00011605,2]
[351734904,1738770674539,-1083.45921318,0.00011609,2]
[351734905,1738770674549,-1141.43253877,0.00011609,2]
[351734906,1738770674558,-500.0,0.0001164,2]
[351734907,1738770674568,-523.387043,0.00011641,2]
[351734908,1738770674578,-515.889473,0.00011641,2]
[351734909,1738770674587,-152.922915,0.00011641,2]
[351734910,1738770674597,-167.03166,0.00011641,2]
[351734911,1738770674606,-160.58762,0.00011641,2]
[351734912,1738770674617,-170.791792,0.00011641,2]
[351734913,1738770674627,-1126.69,0.00011641,2]
[351734914,1738770674636,-1018.07,0.00011641,2]
[351734915,1738770674645,-1111.66,0.00011641,2]
[351734916,1738770674656,-908.3,0.00011641,2]
[351734917,1738770674666,-1020.86,0.00011641,2]
[351734918,1738770674675,-2757.85,0.00011641,2]
[351734919,1738770674685,-500.0,0.00011641,2]
[351734920,1738770674694,-778.98,0.00011641,2]
[351734921,1738770674704,-1433.93,0.00011641,2]
[351734922,1738770674714,-1530.38,0.00011641,2]
[351734923,1738770674724,-589.89,0.00011641,2]
[351734924,1738770674733,-2425.07,0.00011641,2]
[351734925,1738770674744,-1082.03,0.00011641,2]
[351734926,1738770674754,-1820.02,0.00011641,2]
[351734927,1738770674765,-921.5,0.00011641,2]
[351734928,1738770674774,-2070.11,0.00011641,2]
[351734929,1738770674784,-500.0,0.00011641,2]
[351734930,1738770674794,-1845.69,0.00011641,2]
[351734931,1738770674803,-1760.24,0.00011641,2]
[351734932,1738770674812,-761.1,0.00011641,2]
[351734933,1738770674822,-2654.05,0.00011641,2]
[351734934,1738770674832,-1672.03,0.00011641,2]
[351734935,1738770674842,-2982.03,0.00011641,2]
[351734936,1738770674851,-1673.58,0.00011641,2]
[351734937,1738770674860,-2307.76,0.00011641,2]
[351734938,1738770674873,-1855.54,0.00011641,2]
[351734939,1738770674883,-2958.38,0.00011641,2]
[351734940,1738770674892,-2623.09,0.00011641,2]
[351734941,1738770674902,-1036.56,0.00011641,2]
[351734942,1738770674960,-2084.26,0.00011641,2]
[351734943,1738770674969,-1013.94,0.00011641,2]
[351734944,1738770674979,-1161.41,0.00011641,2]
[351734945,1738770674989,-500.0,0.00011641,2]
[351734946,1738770674998,-1354.82,0.00011641,2]
[351734947,1738770675010,-3316.09,0.00011641,2]
[351734948,1738770675021,-500.0,0.00011641,2]
[351734949,1738770675031,-2075.83,0.00011641,2]
[351734950,1738770675041,-2436.56,0.00011641,2]
[351734951,1738770675053,-1343.72,0.00011641,2]
[351734952,1738770675066,-1245.1,0.00011641,2]
[351734953,1738770675077,-500.0,0.00011642,2]
[351734954,1738770675088,-596.28,0.00011642,2]
[351734955,1738770675097,-500.0,0.00011642,2]
[351734956,1738770675107,-1332.61,0.00011642,2]
[351734957,1738770675117,-500.0,0.00011642,2]
[351734958,1738770675126,-1095.47,0.00011642,2]
[351734959,1738770675136,-678.16,0.00011642,2]
[351734960,1738770675146,-563.16,0.00011642,2]
[351734961,1738770675156,-749.13,0.00011642,2]
[351734962,1738770675165,-607.4,0.00011642,2]
[351734963,1738770675175,-900.55,0.00011642,2]
[351734964,1738770675184,-1434.78,0.00011642,2]
[351734965,1738770675194,-576.8,0.00011642,2]
[351734966,1738770675203,-706.22,0.00011642,2]
[351734967,1738770675213,-684.39,0.00011642,2]
[351734968,1738770675222,-1039.07,0.00011642,2]
[351734969,1738770675233,-1018.32,0.00011642,2]
[351734970,1738770675243,-897.3,0.00011642,2]
[351734971,1738770675253,-673.69,0.00011642,2]
[351734972,1738770675263,-1041.58,0.00011642,2]
[351734973,1738770675272,-500.0,0.00011642,2]
[351734974,1738770675282,-534.42,0.00011642,2]
[351734975,1738770675292,-740.11,0.00011642,2]
[351734976,1738770675302,-1557.89,0.00011642,2]
[351734977,1738770675312,-731.82,0.00011642,2]
[351734978,1738770675321,-721.17,0.00011642,2]
[351734979,1738770675330,-500.0,0.00011642,2]
[351734980,1738770675339,-519.49,0.00011642,2]
[351734981,1738770675349,-829.1,0.00011642,2]
[351734982,1738770675358,-858.89,0.00011642,2]
[351734983,1738770675369,-500.0,0.00011642,2]
[351734984,1738770675380,-921.22,0.00011642,2]
[351734985,1738770675389,-500.0,0.00011642,2]
[351734986,1738770675399,-946.31,0.00011642,2]
[351734987,1738770675410,-500.0,0.00011642,2]
[351734988,1738770675419,-802.39,0.00011642,2]
[351734989,1738770675431,-1382.83,0.00011642,2]
[351734990,1738770675443,-1400.23,0.00011642,2]
[351734991,1738770675455,-745.53,0.00011642,2]
[351734992,1738770675465,-707.14,0.00011642,2]
[351734993,1738770675475,-1118.15,0.00011642,2]
[351734994,1738770675486,-826.65,0.00011642,2]
[351734995,1738770675495,-721.92,0.00011642,2]
[351734996,1738770675504,-1111.61,0.00011642,2]
[351734997,1738770675514,-801.84,0.00011642,2]
[351734998,1738770675524,-500.0,0.00011642,2]
[351734999,1738770675534,-969.53,0.00011642,2]
[351735000,1738770675544,-507.21,0.00011642,2]
[351735001,1738770675554,-902.57,0.00011642,2]
[351735002,1738770675564,-500.0,0.00011642,2]
[351735004,1738770675573,-1168.87,0.00011642,2]
[351735005,1738770675583,-500.0,0.00011642,2]
[351735006,1738770675592,-1387.9,0.00011642,2]
[351735007,1738770675601,-1060.41,0.00011643,2]
[351735008,1738770675611,-758.92,0.00011643,2]
[351735009,1738770675622,-757.71,0.00011643,2]
[351735010,1738770675634,-500.0,0.00011643,2]
[351735011,1738770675643,-1429.12,0.00011643,2]
[351735012,1738770675652,-1425.5,0.00011643,2]
[351735013,1738770675661,-1244.98,0.00011643,2]
[351735014,1738770675670,-1283.65,0.00011643,2]
[351735015,1738770675679,-3135.32,0.00011643,2]
[351735016,1738770675689,-3428.69,0.00011643,2]
[351735017,1738770675699,-1299.19,0.00011643,2]
[351735018,1738770675708,-1145.57,0.00011643,2]
[351735019,1738770675718,-1194.71,0.00011643,2]
[351735020,1738770675727,-739.14,0.00011643,2]
[351735021,1738770675737,-2567.97,0.00011643,2]
[351735022,1738770675746,-853.27,0.00011643,2]
[351735023,1738770675756,-1570.67,0.00011643,2]
[351735024,1738770675766,-2103.34,0.00011643,2]
[351735025,1738770675776,-1000.0,0.00011643,2]
[351735026,1738770675785,-520.86,0.00011643,2]
[351735027,1738770675795,-1711.72,0.00011643,2]
[351735028,1738770675804,-500.0,0.000117,4]
[351735029,1738770675813,-1109.86,0.00011712,2]
[351735030,1738770675823,-601.45,0.00011712,2]
[351735031,1738770675832,-651.5,0.00011712,2]
[351735032,1738770675842,-2690.41,0.00011712,2]
[351735033,1738770675852,-1927.8,0.00011712,2]
[351735034,1738770675861,-1684.83,0.00011712,2]
[351735035,1738770675873,-1968.47,0.00011712,2]
[351735036,1738770675882,-1487.65,0.00011712,2]
[351735037,1738770675892,-1200.92,0.00011712,2]
[351735038,1738770675902,-2590.26,0.00011712,2]
[351735039,1738770675911,-3157.9,0.00011712,2]
[351735040,1738770675921,-1135.45,0.00011712,2]
[351735041,1738770675931,-553.43,0.00011712,2]
[351735042,1738770675940,-2633.64,0.00011712,2]
[351735043,1738770675952,-1119.78,0.00011712,2]
[351735044,1738770675961,-1006.46,0.00011712,2]
[351735045,1738770675971,-1737.61,0.00011712,2]
[351735046,1738770675981,-2022.8,0.00011712,2]
[351735047,1738770675990,-668.09,0.00011712,2]
[351735048,1738770676000,-587.82,0.00011712,2]
[351735049,1738770676013,-500.0,0.00011777,2]
[351735050,1738770676022,-523.387043,0.00011778,2]